bitfinex/quotes_BTCUSD_20251029
["timestamp","ask_amount","ask_price","bid_price","bid_amount"]
[1761769394142,0.00842353,111140.0,111130.0,0.9627893]
[1761769394382,0.00864864,111150.0,111140.0,0.17995321]
[1761769394631,0.00864848,111150.0,111140.0,0.78422875]
[1761769396344,0.00021792,111150.0,111140.0,0.78422875]
[1761769397004,0.00021792,111150.0,111140.0,0.78522875]
[1761769397471,0.03275625,111170.0,111160.0,1.05105617]
[1761769397685,1e-08,111170.0,111160.0,1.68398726]
[1761769397894,1e-08,111170.0,111160.0,1.31243073]
[1761769398099,0.00680069,111180.0,111170.0,0.21608693]
[1761769398305,0.0002,111190.0,111180.0,0.21607074]
[1761769398522,0.0002,111190.0,111180.0,1.21999281]
[1761769398939,0.00107133,111190.0,111180.0,1.21999281]
[1761769399178,1.33e-06,111190.0,111180.0,1.21999281]
[1761769399393,0.02523776,111220.0,111210.0,0.17983994]
[1761769399602,0.001481,111220.0,111210.0,1.0725775]
[1761769399817,0.001481,111220.0,111210.0,1.1943575]
[1761769400252,0.001481,111220.0,111210.0,0.35940444]
[1761769400461,0.001481,111220.0,111210.0,1.1943575]
[1761769400904,0.001481,111220.0,111210.0,0.35940444]
[1761769401130,0.001481,111220.0,111210.0,1.28417651]
[1761769401465,0.001481,111220.0,111210.0,1.18180487]
[1761769402285,0.001481,111220.0,111210.0,1.18280487]
[1761769405144,0.0021342,111220.0,111210.0,1.18280487]
[1761769406078,0.0021342,111220.0,111210.0,1.16120265]
[1761769406773,0.0021342,111220.0,111210.0,1.50120265]
[1761769407236,0.15221125,111230.0,111220.0,0.17982377]
[1761769407475,1e-08,111260.0,111250.0,1.32356897]
[1761769407702,0.0028,111300.0,111290.0,0.17971066]
[1761769407924,0.00294437,111300.0,111290.0,1.05744109]
[1761769408142,0.00294437,111300.0,111290.0,0.37077967]
[1761769408593,0.02870437,111300.0,111290.0,0.23504066]
[1761769408817,0.00294437,111300.0,111290.0,0.23504066]
[1761769409040,0.18263888,111300.0,111290.0,0.10125]
[1761769409264,0.00294437,111300.0,111290.0,0.28096066]
[1761769409496,0.00294437,111300.0,111290.0,0.28196066]
[1761769409722,0.01127132,111300.0,111290.0,0.33033801]
[1761769409943,0.01127132,111300.0,111290.0,0.32933801]
[1761769411078,0.01127132,111300.0,111290.0,0.80239129]
[1761769411302,0.01127132,111300.0,111290.0,0.28096066]
[1761769413538,0.01127132,111300.0,111290.0,0.84383295]
[1761769413949,0.01301172,111300.0,111290.0,0.84383295]
[1761769414816,0.01301172,111300.0,111290.0,0.37077967]
[1761769415027,0.01301172,111300.0,111290.0,0.42803892]
[1761769415237,0.01301172,111300.0,111290.0,0.9010922]
[1761769415444,0.01301172,111300.0,111290.0,0.42803892]
[1761769415650,0.01301172,111300.0,111290.0,0.9010922]
[1761769416062,0.04916,111350.0,111330.0,0.17964609]
[1761769416281,0.07044091,111350.0,111340.0,0.17962996]
[1761769416503,0.34,111320.0,111300.0,0.22557611]
[1761769416704,0.07644,111310.0,111300.0,0.17965611]
[1761769416928,3.51969507,111300.0,111280.0,0.0221]
[1761769417147,0.04358,111290.0,111280.0,0.20182681]
[1761769417640,0.04358,111290.0,111260.0,0.17973522]
[1761769417641,3.35996967,111290.0,111260.0,0.17973522]
[1761769417877,3.0,111270.0,111250.0,0.27787739]
[1761769418079,0.17972681,111280.0,111260.0,0.17990349]
[1761769418292,0.20208296,111270.0,111260.0,0.00014437]
[1761769418565,0.23283296,111270.0,111260.0,0.00014437]
[1761769418774,3.35858197,111270.0,111260.0,0.00014437]
[1761769420130,3.69858197,111270.0,111260.0,0.00014437]
[1761769420748,3.69858197,111270.0,111260.0,0.00018437]
[1761769421590,3.69958197,111270.0,111260.0,0.00018437]
[1761769423306,3.66365197,111270.0,111260.0,0.00018437]
[1761769423729,0.66365197,111270.0,111260.0,0.00018437]
[1761769423945,0.66365197,111270.0,111260.0,0.21037349]
[1761769424164,0.001,111270.0,111260.0,0.25690349]
[1761769424848,3.34,111280.0,111270.0,0.17974115]
[1761769425026,0.17972681,111280.0,111270.0,0.26978115]
[1761769425230,0.17972681,111280.0,111270.0,0.30021115]
[1761769425467,0.18868015,111300.0,111280.0,0.17972681]
[1761769425693,0.17969451,111300.0,111290.0,0.25465066]
[1761769425899,0.17969451,111300.0,111290.0,0.30118066]
[1761769426144,0.51969451,111300.0,111290.0,0.30118066]
[1761769426351,0.2328329,111310.0,111290.0,0.30118066]
[1761769426583,0.2328329,111310.0,111300.0,0.03043]
[1761769426984,0.23305035,111310.0,111300.0,0.03043]
[1761769427436,0.57305035,111310.0,111300.0,0.03043]
[1761769427845,0.57305035,111310.0,111300.0,0.25665451]
[1761769428061,0.5814156,111310.0,111300.0,0.03043]
[1761769428283,0.5814156,111310.0,111300.0,0.02165563]
[1761769428449,0.5814156,111310.0,111290.0,0.22422066]
[1761769428450,0.51969451,111300.0,111290.0,0.22422066]
[1761769428656,0.52805976,111300.0,111290.0,0.22422066]
[1761769428830,0.34836525,111300.0,111290.0,0.25465066]
[1761769429057,0.52805976,111300.0,111290.0,0.30118066]
[1761769429252,0.52805976,111300.0,111290.0,0.25465066]
[1761769429796,0.55880976,111300.0,111290.0,0.04451]
[1761769430000,0.55880976,111300.0,111280.0,0.27075963]
[1761769430212,0.17971066,111290.0,111280.0,0.224374]
[1761769430422,0.18807591,111290.0,111280.0,0.04465437]
[1761769430634,3.64864492,111290.0,111280.0,0.00014437]
[1761769430835,3.69335492,111290.0,111280.0,0.00014437]
[1761769431231,3.64864492,111290.0,111280.0,0.00014437]
[1761769431370,0.51972681,111280.0,111270.0,0.22425296]
[1761769431578,0.53213614,111280.0,111270.0,0.04451]
[1761769431779,0.51974296,111270.0,111260.0,0.22430912]
[1761769432048,0.52810821,111270.0,111260.0,0.28997303]
[1761769432208,0.52810821,111270.0,111260.0,0.30126912]
[1761769432597,0.34836525,111270.0,111260.0,0.30126912]
[1761769432815,0.34836525,111270.0,111260.0,0.32040466]
[1761769433011,0.34836525,111270.0,111260.0,0.33752307]
[1761769433646,0.52810821,111270.0,111260.0,0.32040466]
[1761769434442,0.52810821,111270.0,111260.0,0.30126912]
[1761769434669,0.34836525,111270.0,111260.0,0.30130912]
[1761769434921,0.00836525,111270.0,111260.0,0.30330912]
[1761769435370,0.00836525,111270.0,111260.0,0.30130912]
[1761769435794,0.00836525,111270.0,111260.0,0.30230912]
[1761769436004,0.00836525,111270.0,111260.0,0.25577912]
[1761769436237,0.21376821,111270.0,111260.0,0.25577912]
[1761769436448,0.21376821,111270.0,111260.0,0.04559]
[1761769436663,0.25828821,111270.0,111260.0,0.00108]
[1761769436877,0.21376821,111270.0,111260.0,0.00108]
[1761769438581,0.21376821,111270.0,111260.0,8e-05]
[1761769438788,0.21376821,111270.0,111260.0,0.03051]
[1761769439435,0.21376821,111270.0,111260.0,8e-05]
[1761769439850,0.21376821,111270.0,111260.0,0.03051]
[1761769440064,0.18810821,111270.0,111260.0,0.07704]
[1761769440490,0.21376821,111270.0,111260.0,8e-05]
[1761769440697,0.18810821,111270.0,111260.0,0.03051]
[1761769440900,0.18810821,111270.0,111260.0,0.07704]
[1761769441605,0.00836525,111270.0,111260.0,0.25679912]
[1761769443595,0.00836525,111270.0,111260.0,0.7298524]
[1761769443803,0.00836525,111270.0,111260.0,0.81967141]
[1761769444014,0.00836525,111270.0,111260.0,0.87994606]
[1761769444221,0.00836525,111270.0,111260.0,0.88094606]
[1761769444428,0.00836525,111270.0,111260.0,0.97076507]
[1761769444834,0.00836525,111270.0,111260.0,0.96976507]
[1761769445051,0.00836525,111270.0,111260.0,0.93358279]
[1761769445262,0.00836525,111270.0,111260.0,0.96976507]
[1761769445468,0.00836525,111270.0,111260.0,0.97176507]
[1761769445899,0.00836525,111270.0,111260.0,0.96976507]
[1761769446118,0.00836525,111270.0,111260.0,0.40689278]
[1761769446365,0.00836525,111270.0,111260.0,0.87994606]
[1761769447434,0.00836525,111270.0,111260.0,0.88294606]
[1761769447657,0.00836525,111270.0,111260.0,0.84676378]
[1761769447866,0.00836525,111270.0,111260.0,0.84376378]
[1761769448081,0.00836525,111270.0,111260.0,0.87536981]
[1761769448313,0.00836525,111270.0,111260.0,0.87736981]
[1761769449227,0.00836525,111270.0,111260.0,1.02536981]
[1761769449443,0.00836525,111270.0,111260.0,0.87736981]
[1761769450098,0.00836525,111270.0,111260.0,0.3727105]
[1761769450309,0.17971153,111290.0,111280.0,0.17972681]
[1761769450524,0.17971153,111290.0,111270.0,0.29899296]
[1761769450733,3.53669681,111280.0,111260.0,0.18183912]
[1761769450960,0.19671296,111270.0,111260.0,0.03352408]
[1761769451442,0.17974296,111270.0,111260.0,0.2112832]
[1761769451665,0.60954582,111280.0,111260.0,0.28855192]
[1761769451873,0.60954582,111280.0,111270.0,0.07326]
[1761769452286,0.53669681,111280.0,111270.0,0.25300296]
[1761769452513,0.17972681,111280.0,111270.0,0.30055296]
[1761769452746,0.17972681,111280.0,111270.0,0.35173445]
[1761769453611,0.17972681,111280.0,111270.0,0.30055296]
[1761769454544,0.18869706,111290.0,111270.0,0.30055296]
[1761769454745,0.61851607,111290.0,111280.0,0.03186]
[1761769455417,0.61851607,111290.0,111280.0,0.21158681]
[1761769455594,0.52869706,111290.0,111280.0,0.25913681]
[1761769456097,0.54566706,111290.0,111280.0,0.03186]
[1761769456514,0.17959086,111280.0,111270.0,0.12137]
[1761769457459,0.19656086,111280.0,111270.0,0.07382]
[1761769457812,0.19656086,111280.0,111270.0,0.03186]
[1761769458016,0.19656086,111280.0,111270.0,0.07405]
[1761769458818,0.17959086,111280.0,111270.0,0.07405]
[1761769459208,0.17959086,111280.0,111270.0,0.1216]
[1761769459397,0.17959086,111280.0,111270.0,0.33240008]
[1761769459965,0.17959086,111280.0,111270.0,0.30134296]
[1761769460752,0.17959086,111280.0,111270.0,0.30234296]
[1761769461387,0.17959086,111280.0,111270.0,0.1226]
[1761769461606,0.17972681,111280.0,111270.0,0.1226]
[1761769461812,0.17972681,111280.0,111270.0,0.30234255]
[1761769462648,0.52869706,111290.0,111280.0,0.17972681]
[1761769462802,0.53711662,111290.0,111280.0,0.25913681]
[1761769463261,0.52869706,111290.0,111280.0,0.07941]
[1761769464036,0.52869706,111290.0,111280.0,0.25913681]
[1761769464256,0.18869706,111290.0,111280.0,0.25913681]
[1761769464670,0.18869619,111290.0,111280.0,0.25913681]
[1761769465843,0.18869619,111290.0,111280.0,0.26013681]
[1761769466936,0.20566619,111290.0,111280.0,0.001]
[1761769467154,0.20566619,111290.0,111280.0,0.21258681]
[1761769467355,0.18869619,111290.0,111280.0,0.26013681]
[1761769468167,0.18869619,111290.0,111280.0,0.08041]
[1761769468606,0.18869619,111290.0,111280.0,0.26013681]
[1761769468816,0.18869619,111290.0,111280.0,0.08041]
[1761769469242,0.18869619,111290.0,111280.0,0.26013681]
[1761769469451,0.18869619,111290.0,111280.0,0.08041]
[1761769470096,0.20566619,111290.0,111280.0,0.03286]
[1761769470938,0.20566619,111290.0,111280.0,0.03186]
[1761769471378,0.19712059,111290.0,111280.0,0.03186]
[1761769472406,0.21409059,111290.0,111280.0,0.03186]
[1761769472582,0.19712059,111290.0,111280.0,0.03186]
[1761769473090,0.21409059,111290.0,111280.0,0.03186]
[1761769475221,0.17972681,111280.0,111270.0,0.22193261]
[1761769475422,0.17972681,111280.0,111270.0,0.08974]
[1761769475648,0.17972681,111280.0,111270.0,0.30134296]
[1761769476685,0.18869619,111290.0,111270.0,0.35278361]
[1761769476885,0.19712304,111290.0,111280.0,0.07941]
[1761769478351,0.19712304,111290.0,111280.0,0.08041]
[1761769481589,0.21409304,111290.0,111280.0,0.001]
[1761769481791,0.21409304,111290.0,111280.0,0.03213]
[1761769482003,0.57106304,111290.0,111280.0,0.001]
[1761769482213,0.65588205,111290.0,111280.0,0.001]
[1761769482633,0.68811298,111290.0,111280.0,0.001]
[1761769483250,0.66318244,111290.0,111280.0,0.03213]
[1761769483465,0.55639343,111290.0,111280.0,0.03213]
[1761769483671,0.55639343,111290.0,111280.0,0.22573]
[1761769484312,0.55639343,111290.0,111280.0,0.22473]
[1761769484749,0.53212304,111290.0,111280.0,0.22473]
[1761769485187,0.53212304,111290.0,111280.0,0.07673]
[1761769485598,0.53312304,111290.0,111280.0,0.07673]
[1761769486021,0.19212304,111290.0,111280.0,0.25645681]
[1761769486236,0.19212304,111290.0,111280.0,0.25649681]
[1761769486452,0.19212304,111290.0,111280.0,0.30400576]
[1761769486714,0.01241238,111290.0,111280.0,0.30400576]
[1761769486919,0.00842685,111290.0,111280.0,0.30400576]
[1761769487124,0.18812277,111300.0,111280.0,0.30400576]
[1761769487330,0.52812277,111300.0,111290.0,0.03113]
[1761769487534,0.52812277,111300.0,111290.0,0.07673]
[1761769487966,0.52812277,111300.0,111290.0,0.25644066]
[1761769488600,0.52812277,111300.0,111290.0,0.07673]
[1761769488808,0.52812277,111300.0,111290.0,0.03113]
[1761769489019,0.54509277,111300.0,111290.0,0.03113]
[1761769490283,0.3392545,111300.0,111290.0,0.03113]
[1761769490491,0.19667922,111300.0,111290.0,0.03113]
[1761769490693,0.17970922,111300.0,111290.0,0.07673]
[1761769490896,0.17970922,111300.0,111290.0,0.25644066]
[1761769491121,0.17970922,111300.0,111290.0,0.07673]
[1761769491322,0.17970922,111300.0,111290.0,0.07677]
[1761769491752,0.19667922,111300.0,111290.0,0.03117]
[1761769491950,0.21364922,111300.0,111290.0,4e-05]
[1761769492380,0.19667922,111300.0,111290.0,4e-05]
[1761769493199,0.19667922,111300.0,111290.0,0.03117]
[1761769494113,0.19667922,111300.0,111290.0,4e-05]
[1761769494841,0.21364922,111300.0,111290.0,4e-05]
[1761769495479,0.19667922,111300.0,111290.0,4e-05]
[1761769495693,0.21364922,111300.0,111290.0,4e-05]
[1761769496662,0.19667922,111300.0,111290.0,4e-05]
[1761769497539,0.19667922,111300.0,111290.0,0.03117]
[1761769497752,0.19667922,111300.0,111290.0,4e-05]
[1761769497966,0.19667922,111300.0,111290.0,0.03117]
[1761769498598,0.17970922,111300.0,111290.0,0.07677]
[1761769499460,0.17970922,111300.0,111290.0,0.25648066]
[1761769499664,0.17970922,111300.0,111290.0,0.07677]
[1761769499847,0.19667922,111300.0,111290.0,0.03117]
[1761769500902,0.17970922,111300.0,111290.0,0.25648066]
[1761769501479,0.19667922,111300.0,111290.0,0.03117]
[1761769502351,0.20510269,111300.0,111290.0,4e-05]
[1761769502535,0.20510269,111300.0,111290.0,0.03117]
[1761769502972,0.22207269,111300.0,111290.0,4e-05]
[1761769504256,0.24634308,111300.0,111290.0,4e-05]
[1761769504508,0.0426688,111300.0,111290.0,4e-05]
[1761769504726,0.19810763,111300.0,111290.0,4e-05]
[1761769505789,0.28792664,111300.0,111290.0,4e-05]
[1761769506000,3.62792664,111300.0,111290.0,4e-05]
[1761769506448,3.65219703,111300.0,111290.0,4e-05]
[1761769507347,3.65319703,111300.0,111290.0,4e-05]
[1761769507570,3.65176862,111300.0,111290.0,4e-05]
[1761769509299,3.6879509,111300.0,111290.0,4e-05]
[1761769510194,0.61052823,111300.0,111290.0,0.0326]
[1761769510404,0.18070922,111300.0,111290.0,0.0813]
[1761769510836,0.18070922,111300.0,111290.0,0.26101066]
[1761769511266,0.18070922,111300.0,111290.0,0.0813]
[1761769511505,0.18070922,111300.0,111290.0,0.26101066]
[1761769511712,0.18070922,111300.0,111290.0,0.2871173]
[1761769511926,0.17970922,111300.0,111290.0,0.2871173]
[1761769512576,0.17970922,111300.0,111290.0,0.26101066]
[1761769512785,0.17970922,111300.0,111290.0,0.0326]
[1761769513438,0.17970922,111300.0,111290.0,0.21231066]
[1761769513860,0.17970922,111300.0,111290.0,0.0326]
[1761769514284,0.17970922,111300.0,111290.0,0.21231066]
[1761769514485,0.17970922,111300.0,111290.0,0.0326]
[1761769515548,0.17970922,111300.0,111290.0,0.26218066]
[1761769516603,0.18813688,111300.0,111290.0,0.26218066]
[1761769517345,0.00842766,111300.0,111290.0,0.26218066]
[1761769517551,0.00842766,111300.0,111290.0,0.30637537]
[1761769517751,0.00864444,111310.0,111300.0,0.17969451]
[1761769517987,0.00021745,111310.0,111300.0,0.26154451]
[1761769518979,0.00034702,111310.0,111300.0,0.26154451]
[1761769520960,0.00034702,111310.0,111300.0,0.3100935]
[1761769521153,0.00034702,111310.0,111300.0,0.26154451]
[1761769524903,0.00034702,111310.0,111300.0,0.35136352]
[1761769525253,0.00034702,111310.0,111300.0,1.08346445]
[1761769525458,0.00034702,111310.0,111300.0,1.08446445]
[1761769525659,0.00034702,111310.0,111300.0,1.17428346]
[1761769526290,0.00034702,111310.0,111300.0,1.55046574]
[1761769526903,0.00034702,111310.0,111300.0,1.54946574]
[1761769527356,0.00842697,111350.0,111340.0,0.17962996]
[1761769527508,0.00048053,111350.0,111340.0,1.0015499]
[1761769527712,0.03269736,111370.0,111360.0,0.1795977]
[1761769527910,0.03280195,111370.0,111360.0,0.2115777]
[1761769528156,0.00853156,111370.0,111360.0,0.2614477]
[1761769528320,0.00012951,111370.0,111360.0,0.2614477]
[1761769528928,0.17971108,111370.0,111360.0,0.2614477]
[1761769529135,0.19986568,111370.0,111350.0,0.26877367]
[1761769529336,0.22413607,111370.0,111360.0,0.03198]
[1761769530252,0.1795977,111360.0,111350.0,0.03929]
[1761769530483,0.1879923,111360.0,111350.0,0.03929]
[1761769530685,0.1879923,111360.0,111350.0,0.25088383]
[1761769530891,0.1879923,111360.0,111350.0,0.30075383]
[1761769531431,0.1879923,111360.0,111350.0,0.12114]
[1761769531973,0.1884723,111360.0,111350.0,0.03198]
[1761769532233,0.17961383,111350.0,111340.0,0.0333]
[1761769532691,0.17961383,111350.0,111340.0,0.08317]
[1761769532692,0.18800843,111350.0,111340.0,0.08317]
[1761769532694,0.18800843,111350.0,111340.0,0.26279996]
[1761769532971,0.0083946,111350.0,111340.0,0.31187179]
[1761769533198,0.00086946,111350.0,111340.0,0.29477996]
[1761769533905,0.00926406,111350.0,111340.0,0.29477996]
[1761769534382,0.18887789,111350.0,111340.0,0.29477996]
[1761769534613,0.00926406,111350.0,111340.0,0.29477996]
[1761769534862,0.00926406,111350.0,111340.0,0.29577996]
[1761769535104,0.00926406,111350.0,111340.0,0.3480498]
[1761769535584,0.00926406,111350.0,111340.0,0.29577996]
[1761769538224,0.00925258,111350.0,111340.0,0.29577996]
[1761769541131,0.18886641,111350.0,111340.0,0.29577996]
[1761769541338,0.00925258,111350.0,111340.0,0.29577996]
[1761769541906,0.00925258,111350.0,111340.0,0.85815531]
[1761769542105,0.00925258,111350.0,111340.0,0.94797432]
[1761769542306,0.00925258,111350.0,111340.0,0.47541798]
[1761769543330,0.00925258,111350.0,111340.0,0.38559897]
[1761769544878,0.00925258,111350.0,111340.0,0.85815531]
[1761769545096,0.00925258,111350.0,111340.0,0.38559897]
[1761769545730,0.00925258,111350.0,111340.0,0.85815531]
[1761769547254,0.00925258,111350.0,111340.0,1.00615531]
[1761769547459,0.00925258,111350.0,111340.0,1.09597432]
[1761769547697,0.00925258,111350.0,111340.0,1.1321566]
[1761769548522,0.00927011,111350.0,111340.0,1.1321566]
[1761769548765,0.00840065,111350.0,111340.0,1.19895344]
[1761769549010,0.00012951,111370.0,111360.0,0.31832759]
[1761769549268,0.00012951,111370.0,111360.0,1.20791563]
[1761769549557,0.00012951,111370.0,111360.0,1.25551563]
[1761769551340,0.00012951,111370.0,111360.0,0.78295929]
[1761769553019,0.00012951,111370.0,111360.0,0.7331666]
[1761769554870,0.00056407,111370.0,111360.0,1.20572294]
[1761769555188,0.00056407,111370.0,111360.0,0.7331666]
[1761769556049,0.00056407,111370.0,111360.0,0.34903671]
[1761769557413,0.00056407,111370.0,111360.0,1.24190522]
[1761769557665,0.00056407,111370.0,111360.0,1.33172423]
[1761769558287,0.00056407,111370.0,111360.0,1.29554195]
[1761769558571,0.00056407,111370.0,111360.0,0.82298561]
[1761769559409,0.00056407,111370.0,111360.0,1.23860509]
[1761769559635,0.31490169,111410.0,111370.0,0.21786775]
[1761769559850,0.17955123,111390.0,111380.0,0.1795651]
[1761769560055,0.17955123,111390.0,111380.0,0.2271651]
[1761769560264,0.17955123,111390.0,111380.0,0.2591851]
[1761769560676,0.17998569,111390.0,111380.0,0.07962]
[1761769560907,0.18837867,111390.0,111380.0,0.07962]
[1761769561758,3.18837867,111390.0,111380.0,0.07962]
[1761769562395,3.18837867,111390.0,111380.0,0.10937111]
[1761769562396,0.18837867,111390.0,111380.0,0.10937111]
[1761769562603,0.18837867,111390.0,111380.0,0.07962]
[1761769563452,0.18937867,111390.0,111380.0,0.07962]
[1761769563946,0.0879479,111410.0,111400.0,0.17953321]
[1761769564135,0.0879479,111410.0,111400.0,0.77379135]
[1761769564350,0.0379479,111410.0,111400.0,0.94739264]
[1761769564571,0.0012,111420.0,111410.0,0.17951709]
[1761769564803,0.0012,111420.0,111410.0,0.3867861]
[1761769565027,0.0012,111420.0,111410.0,0.85920523]
[1761769566330,0.0012,111420.0,111410.0,0.3867861]
[1761769566554,0.0012,111420.0,111410.0,0.92942205]
[1761769566766,0.0012,111420.0,111410.0,0.45700292]
[1761769566974,0.0012,111420.0,111410.0,0.3867861]
[1761769567410,0.0012,111420.0,111410.0,0.3887861]
[1761769567884,0.0012,111420.0,111410.0,0.3867861]
[1761769568093,0.18070098,111420.0,111410.0,0.11745]
[1761769568274,0.18070098,111420.0,111410.0,0.11945]
[1761769568765,0.18070098,111420.0,111410.0,0.29896709]
[1761769568937,0.18070098,111420.0,111410.0,0.11945]
[1761769569372,0.18070098,111420.0,111410.0,0.29696709]
[1761769569598,0.18070098,111420.0,111410.0,0.11745]
[1761769569834,0.18070098,111420.0,111410.0,0.11845]
[1761769570053,0.18135242,111420.0,111410.0,0.11845]
[1761769570285,0.18135242,111420.0,111410.0,0.11745]
[1761769570698,0.18135242,111420.0,111410.0,0.29696709]
[1761769571332,0.21420242,111420.0,111410.0,0.36534709]
[1761769572186,0.21420242,111420.0,111410.0,0.148]
[1761769572623,0.26173242,111420.0,111410.0,0.148]
[1761769573044,0.17952794,111410.0,111390.0,0.22682215]
[1761769573257,0.21172321,111400.0,111390.0,0.03843947]
[1761769573467,0.25925321,111400.0,111390.0,0.03843947]
[1761769575836,0.2676134,111400.0,111390.0,0.03843947]
[1761769576063,0.2200834,111400.0,111390.0,0.2520188]
[1761769576277,0.04055019,111400.0,111390.0,0.2520188]
[1761769576492,0.2200834,111400.0,111390.0,0.29607505]
[1761769576928,0.2200834,111400.0,111390.0,0.2520188]
[1761769577554,0.2676134,111400.0,111390.0,0.2189888]
[1761769577779,0.2200834,111400.0,111390.0,0.2520188]
[1761769578470,0.22030058,111400.0,111390.0,0.2520188]
[1761769579936,0.22030058,111400.0,111390.0,0.4000188]
[1761769580364,0.22030058,111400.0,111390.0,0.45392235]
[1761769580576,0.22030058,111400.0,111390.0,0.4000188]
[1761769581852,0.18811058,111400.0,111390.0,0.4000188]
[1761769582050,0.22030058,111400.0,111390.0,0.4000188]
[1761769582266,0.22030058,111400.0,111390.0,0.22046947]
[1761769582476,0.22030058,111400.0,111390.0,0.18743947]
[1761769582477,0.26783058,111400.0,111390.0,0.18743947]
[1761769582909,0.22030058,111400.0,111390.0,0.22046947]
[1761769584198,0.22030058,111400.0,111390.0,0.25369129]
[1761769584404,0.18811058,111400.0,111390.0,0.25369129]
[1761769584825,0.00857737,111400.0,111390.0,0.43324062]
[1761769585042,0.00857737,111400.0,111390.0,0.47996062]
[1761769585249,0.00857737,111400.0,111390.0,0.56977963]
[1761769585457,0.00857737,111400.0,111390.0,1.04219876]
[1761769585694,0.00857737,111400.0,111390.0,1.28759876]
[1761769586322,0.00857737,111400.0,111390.0,0.81517963]
[1761769587144,0.0012,111420.0,111410.0,0.17951709]
[1761769587352,0.0012,111420.0,111410.0,0.30083293]
[1761769587766,0.00163427,111420.0,111410.0,0.30083293]
[1761769588012,0.00163427,111420.0,111410.0,1.0492137]
[1761769589086,0.00263427,111420.0,111410.0,1.0492137]
[1761769589538,0.00163427,111420.0,111410.0,1.0492137]
[1761769589954,0.00163427,111420.0,111410.0,1.0502137]
[1761769590392,0.00163427,111420.0,111410.0,0.57779457]
[1761769590812,0.00163427,111420.0,111410.0,1.0502137]
[1761769591443,0.00163427,111420.0,111410.0,0.57779457]
[1761769591659,0.00163427,111420.0,111410.0,0.52794873]
[1761769594455,0.00163427,111420.0,111410.0,0.3885261]
[1761769594652,0.00163427,111420.0,111410.0,1.50341364]
[1761769597000,0.20933003,111450.0,111440.0,0.03303]
[1761769597216,0.20933003,111450.0,111440.0,0.18786032]
[1761769598362,0.20947406,111450.0,111440.0,0.18786032]
[1761769598583,0.21147406,111450.0,111440.0,0.18786032]
[1761769598788,0.21147406,111450.0,111440.0,0.23382032]
[1761769599203,0.21988086,111450.0,111440.0,0.23382032]
[1761769599423,0.25115086,111450.0,111440.0,0.1666099]
[1761769599630,0.28338179,111450.0,111440.0,0.1666099]
[1761769600036,0.21988086,111450.0,111440.0,0.1666099]
[1761769600253,0.21988086,111450.0,111440.0,0.34607867]
[1761769600477,0.21988086,111450.0,111440.0,0.20665604]
[1761769600717,0.21988086,111450.0,111440.0,0.25261604]
[1761769600948,0.21988086,111450.0,111440.0,0.2786618]
[1761769601169,0.21988086,111450.0,111440.0,0.36848081]
[1761769601815,0.21988086,111450.0,111440.0,0.36843281]
[1761769602676,0.22053204,111450.0,111440.0,0.36843281]
[1761769603432,0.21492506,111450.0,111440.0,0.36843281]
[1761769603615,0.01120201,111450.0,111440.0,0.36843281]
[1761769604278,0.20863257,111460.0,111450.0,0.17945266]
[1761769604491,0.15213125,111460.0,111450.0,0.33919121]
[1761769604700,0.15213125,111460.0,111450.0,0.42901022]
[1761769605121,0.15213125,111460.0,111450.0,0.42801022]
[1761769609587,0.15213125,111460.0,111450.0,0.32831167]
[1761769609798,0.15213125,111460.0,111450.0,0.37422167]
[1761769609997,0.15234826,111460.0,111450.0,0.37422167]
[1761769611561,0.36305482,111460.0,111450.0,0.02813]
[1761769611767,0.36305482,111460.0,111440.0,0.22537877]
[1761769611768,0.17945266,111450.0,111440.0,0.20759877]
[1761769611977,0.17945266,111450.0,111440.0,0.3370225]
[1761769612151,0.21072266,111450.0,111440.0,0.32832778]
[1761769612798,0.17945266,111450.0,111440.0,0.32832778]
[1761769613286,0.37796482,111460.0,111440.0,0.32832778]
[1761769613492,0.36305482,111460.0,111450.0,0.03091]
[1761769614322,0.17945266,111450.0,111440.0,0.34332778]
[1761769614526,0.17945266,111450.0,111440.0,0.3965054]
[1761769614736,0.37796482,111460.0,111440.0,0.3815054]
[1761769615010,0.21072266,111450.0,111440.0,0.32832778]
[1761769615213,0.28690266,111450.0,111440.0,0.13942263]
[1761769617053,0.28690266,111450.0,111440.0,0.14042263]
[1761769617490,0.28690266,111450.0,111440.0,0.13942263]
[1761769618373,0.15234826,111460.0,111450.0,0.17945266]
[1761769618606,0.15234826,111460.0,111450.0,0.34609167]
[1761769618881,0.15234826,111460.0,111450.0,0.30018167]
[1761769619578,0.18361826,111460.0,111450.0,0.30018167]
[1761769620227,0.15234826,111460.0,111450.0,0.30018167]
[1761769620428,0.18361826,111460.0,111450.0,0.30018167]
[1761769620638,0.22979826,111460.0,111450.0,0.17945266]
[1761769621267,0.18361826,111460.0,111450.0,0.21036266]
[1761769621480,0.15234826,111460.0,111450.0,0.21036266]
[1761769621890,0.18361826,111460.0,111450.0,0.21036266]
[1761769622307,0.15234826,111460.0,111450.0,0.21036266]
[1761769623151,0.18361826,111460.0,111450.0,0.21036266]
[1761769623994,0.18361826,111460.0,111450.0,0.34978529]
[1761769625514,0.40923482,111460.0,111450.0,0.13942263]
[1761769625717,0.17945266,111450.0,111430.0,0.20761266]
[1761769625932,0.07031,111440.0,111430.0,0.20775669]
[1761769626139,0.29595877,111440.0,111430.0,0.1796289]
[1761769626551,0.11649,111440.0,111430.0,0.1796289]
[1761769626755,0.07031,111440.0,111430.0,0.2332289]
[1761769627158,0.24977877,111440.0,111430.0,0.2332289]
[1761769627346,0.07031,111440.0,111430.0,0.2332289]
[1761769627762,0.1173,111440.0,111430.0,0.2023189]
[1761769628330,0.29676877,111440.0,111430.0,0.2023189]
[1761769629145,0.29676877,111440.0,111430.0,0.2033189]
[1761769629685,0.1173,111440.0,111430.0,0.2033189]
[1761769630325,0.07031,111440.0,111430.0,0.2350489]
[1761769630508,0.24977877,111440.0,111430.0,0.2350489]
[1761769631723,0.29676877,111440.0,111430.0,0.2033189]
[1761769633115,0.30517434,111440.0,111430.0,0.2033189]
[1761769633322,0.25818434,111440.0,111430.0,0.2358589]
[1761769633747,0.25818434,111440.0,111430.0,0.2033189]
[1761769634194,0.30462434,111440.0,111430.0,0.2033189]
[1761769634406,0.30462434,111440.0,111430.0,0.1806289]
[1761769634649,0.30462434,111440.0,111430.0,0.00114403]
[1761769634872,0.30462434,111440.0,111430.0,0.1806289]
[1761769635585,0.30462434,111440.0,111430.0,0.00114403]
[1761769636073,0.25818434,111440.0,111430.0,0.2343889]
[1761769636523,0.21073877,111440.0,111430.0,0.2343889]
[1761769636725,0.21914441,111440.0,111430.0,0.2343889]
[1761769636932,0.21914441,111440.0,111430.0,0.28126403]
[1761769637184,0.26558441,111440.0,111430.0,0.02236403]
[1761769637422,0.26558441,111440.0,111430.0,0.2018489]
[1761769638169,0.25717877,111440.0,111430.0,0.2018489]
[1761769638402,0.26558419,111440.0,111430.0,0.2018489]